fUST/lending_fUST_20240716
["ID","MTS","AMOUNT","RATE_DAILY","PERIOD"]
[332237995,1721063452914,-1562.288948,0.00022465,2]
[332237996,1721063452924,-525.22,0.00022465,2]
[332237997,1721063452933,-500.0,0.00022465,2]
[332237998,1721063452943,-648.63,0.00022465,2]
[332237999,1721063452952,-500.0,0.00022465,2]
[332238000,1721063452962,-500.0,0.00022465,2]
[332238001,1721063452972,-681.43,0.00022465,2]
[332238002,1721063452982,-500.0,0.00022465,2]
[332238003,1721063452992,-500.0,0.00022465,2]
[332238004,1721063453001,-500.0,0.00022465,2]
[332238005,1721063453011,-500.0,0.00022465,2]
[332238006,1721063453020,-500.0,0.00022465,2]
[332238007,1721063453030,-500.0,0.00022465,2]
[332238008,1721063453040,-500.0,0.00022465,2]
[332238009,1721063453049,-393.63978521,0.00022465,2]
[332238010,1721063453059,-500.0,0.00022465,2]
[332238011,1721063453069,-500.0,0.00022465,2]
[332238012,1721063453078,-500.0,0.00022465,2]
[332238013,1721063453087,-150.112233,0.000225,4]
[332238014,1721063453096,-165.904656,0.00022527,7]
[332238015,1721063453106,-488.276408,0.00022527,7]
[332238016,1721063453116,-488.276408,0.00022527,7]
[332238017,1721063453126,-151.0,0.00022527,7]
[332238018,1721063453136,-150.112233,0.000226,4]
[332238019,1721063453147,-150.112233,0.000227,5]
[332238020,1721063453156,-428.79128116,0.00022709,2]
[332238021,1721063453166,-6874.87866784,0.00022709,2]
[332238022,1721063453176,-225.98775772,0.00022709,2]
[332238023,1721063453186,-764.72891361,0.00022709,2]
[332238024,1721063453195,-261.08645419,0.00022709,2]
[332238025,1721063453205,-242357.41926881,0.00022709,2]
[332238026,1721063453839,-102025.42123381,0.00022709,2]
[332238027,1721063453849,-151.0,0.00022709,7]
[332238028,1721063453858,-153.917559,0.00022709,7]
[332238029,1721063453868,-151.0,0.00022709,2]
[332238030,1721063453877,-151.0,0.00022709,7]
[332238031,1721063453887,-173.604182,0.00022709,7]
[332238032,1721063453896,-152.442106,0.00022709,7]
[332238033,1721063453907,-173.566088,0.00022709,7]
[332238034,1721063453916,-152.442106,0.00022709,7]
[332238035,1721063453925,-488.276408,0.00022709,7]
[332238036,1721063453935,-488.276408,0.00022709,7]
[332238037,1721063453944,-151.0,0.00022709,7]
[332238038,1721063453955,-623.250894,0.00022709,7]
[332238039,1721063453964,-623.250894,0.00022709,7]
[332238040,1721063453974,-165.504612,0.00022709,7]
[332238041,1721063453983,-151.0,0.00022709,7]
[332238042,1721063453993,-165.504612,0.00022709,7]
[332238043,1721063454002,-764.710701,0.00022709,7]
[332238044,1721063454012,-764.710701,0.00022709,7]
[332238045,1721063454021,-465.089358,0.00022709,7]
[332238046,1721063454030,-465.089358,0.00022709,7]
[332238047,1721063454041,-243.73,0.00022739,2]
[332238048,1721063454050,-500.0,0.00022739,2]
[332238049,1721063454060,-500.0,0.00022739,2]
[332238050,1721063454069,-500.0,0.00022739,2]
[332238051,1721063454079,-500.0,0.00022739,2]
[332238052,1721063454088,-500.0,0.00022739,2]
[332238053,1721063454097,-500.0,0.00022739,2]
[332238054,1721063454106,-500.0,0.00022739,2]
[332238055,1721063454117,-500.0,0.00022739,2]
[332238056,1721063454126,-500.0,0.00022739,2]
[332238057,1721063454136,-500.0,0.00022739,2]
[332238058,1721063454145,-500.0,0.00022739,2]
[332238059,1721063454156,-500.0,0.00022739,2]
[332238060,1721063454166,-500.0,0.00022739,2]
[332238061,1721063454176,-500.0,0.00022739,2]
[332238062,1721063454185,-608.84,0.00022739,2]
[332238063,1721063454194,-500.0,0.00022739,2]
[332238064,1721063454203,-500.0,0.00022739,2]
[332238065,1721063454213,-500.0,0.00022739,2]
[332238066,1721063454222,-500.0,0.00022739,2]
[332238067,1721063454232,-565.6550304,0.00022739,2]
[332238068,1721063454241,-500.0,0.00022739,2]
[332238069,1721063454250,-500.0,0.00022739,2]
[332238070,1721063454259,-500.0,0.00022739,2]
[332238071,1721063454269,-500.0,0.00022739,2]
[332238072,1721063454278,-500.0,0.00022739,2]
[332238073,1721063454288,-200.0,0.00022739,2]
[332238074,1721063454300,-500.0,0.00022739,2]
[332238075,1721063454318,-500.0,0.00022739,2]
[332238076,1721063454333,-500.0,0.00022739,2]
[332238077,1721063454347,-500.0,0.00022739,2]
[332238078,1721063454362,-500.0,0.00022739,2]
[332238079,1721063454378,-500.0,0.00022739,2]
[332238080,1721063454394,-500.0,0.00022739,2]
[332238081,1721063454414,-500.0,0.00022739,2]
[332238082,1721063454428,-500.0,0.00022739,2]
[332238083,1721063454442,-500.0,0.00022739,2]
[332238084,1721063454459,-500.0,0.00022739,2]
[332238085,1721063454471,-484.25681201,0.00022739,2]
[332238086,1721063454483,-500.0,0.00022739,2]
[332238087,1721063454497,-559.37,0.00022739,2]
[332238088,1721063454512,-500.0,0.00022739,2]
[332238089,1721063454527,-561.05842069,0.00022739,2]
[332238090,1721063454542,-500.0,0.00022739,2]
[332238091,1721063454557,-347.88153597,0.00022739,2]
[332238092,1721063454568,-500.0,0.00022739,2]
[332238093,1721063454581,-500.0,0.00022739,2]
[332238094,1721063454596,-500.0,0.00022739,2]
[332238095,1721063454610,-500.0,0.00022739,2]
[332238096,1721063454624,-564.59,0.00022739,2]
[332238097,1721063454637,-500.0,0.00022739,2]
[332238098,1721063454652,-500.0,0.00022739,2]
[332238099,1721063454668,-500.0,0.00022739,2]
[332238100,1721063454679,-500.0,0.00022739,2]
[332238101,1721063454691,-500.0,0.00022739,2]
[332238102,1721063454706,-189.8539331,0.00022739,2]
[332238103,1721063454719,-959.41,0.00022739,2]
[332238104,1721063454731,-500.0,0.00022739,2]
[332238105,1721063454745,-500.0,0.00022739,2]
[332238106,1721063454757,-500.0,0.00022739,2]
[332238107,1721063454769,-500.0,0.00022739,2]
[332238108,1721063454781,-500.0,0.00022739,2]
[332238109,1721063454795,-500.0,0.00022739,2]
[332238110,1721063454807,-500.0,0.00022739,2]
[332238111,1721063454819,-500.0,0.00022739,2]
[332238112,1721063454832,-500.0,0.00022739,2]
[332238113,1721063454844,-500.0,0.00022739,2]
[332238114,1721063454856,-500.0,0.00022739,2]
[332238115,1721063454868,-500.0,0.00022739,2]
[332238116,1721063454881,-189.63952494,0.00022739,2]
[332238117,1721063454893,-500.0,0.00022739,2]
[332238118,1721063454912,-500.0,0.00022739,2]
[332238119,1721063454924,-500.0,0.00022739,2]
[332238120,1721063454936,-500.0,0.00022739,2]
[332238121,1721063454945,-500.0,0.00022739,2]
[332238122,1721063454955,-500.0,0.00022739,2]
[332238123,1721063454964,-500.0,0.00022739,2]
[332238124,1721063454974,-500.0,0.00022739,2]
[332238125,1721063454983,-724.41,0.00022739,2]
[332238126,1721063454992,-500.0,0.00022739,2]
[332238127,1721063455002,-500.0,0.00022739,2]
[332238128,1721063455011,-488.276408,0.00022739,7]
[332238129,1721063455021,-381.64890854,0.00022739,2]
[332238130,1721063455030,-488.276408,0.00022739,7]
[332238131,1721063455039,-781.34,0.00022739,2]
[332238132,1721063455048,-500.0,0.00022739,2]
[332238133,1721063455058,-500.0,0.00022739,2]
[332238134,1721063455067,-500.0,0.00022739,2]
[332238135,1721063455077,-500.0,0.00022739,2]
[332238136,1721063455087,-397.4864841,0.00022739,2]
[332238137,1721063455097,-368.00076059,0.00022739,2]
[332238138,1721063455444,-131.99923941,0.00022739,2]
[332238139,1721063455453,-500.0,0.00022739,2]
[332238140,1721063455462,-500.0,0.00022739,2]
[332238141,1721063455472,-500.0,0.00022739,2]
[332238142,1721063455482,-500.0,0.00022739,2]
[332238143,1721063455491,-556.0,0.00022739,2]
[332238144,1721063455500,-500.0,0.00022739,2]
[332238145,1721063455509,-737.82,0.00022739,2]
[332238146,1721063455518,-325.51494338,0.00022739,2]
[332238156,1721063797868,490.90477664,0.00015998,2]
[332238159,1721064097185,3755.89251816,0.00014999,2]
[332238160,1721064184490,1182.34109105,0.00014999,2]
[332238161,1721064189381,636.6214962,0.00015947,2]
[332238162,1721064209818,610.635225,0.00015,2]
[332238163,1721064217838,1043.48361946,0.00015,2]
[332238164,1721064218618,1160.55996318,0.00014999,2]
[332238165,1721064224482,2121.85652379,0.00014999,2]
[332238166,1721064228555,2380.75475869,0.00014999,2]
[332238167,1721064243083,934.93879927,0.00014999,2]
[332238169,1721064259531,662.60273561,0.00014999,2]
[332238170,1721064260157,1374.64338177,0.00015,2]
[332238171,1721064284914,789.35169197,0.00014999,2]
[332238172,1721064302557,886.58092438,0.00014999,2]
[332238174,1721064309327,518.34284537,0.00014999,2]
[332238175,1721064310559,182.82989065,0.00014999,2]
[332238177,1721064315732,599.44172174,0.00014999,2]
[332238178,1721064315911,1436.35994433,0.00014999,2]
[332238180,1721064317076,532.67305812,0.00014999,2]
[332238185,1721064326103,515.67232544,0.00014999,2]
[332238186,1721064327504,391.91633005,0.00014999,2]
[332238187,1721064327738,2135.60833403,0.00014999,2]
[332238190,1721064332889,950.29706761,0.00015,2]
[332238191,1721064341638,1626.22431711,0.00014999,2]
[332238192,1721064347104,312.61384498,0.00014999,2]
[332238193,1721064359358,158.35036999,0.00014999,2]
[332238194,1721064370785,2423.89779899,0.00015,2]
[332238195,1721064374430,283.56828739,0.00014999,2]
[332238196,1721064379948,2121.85652379,0.00014999,2]
[332238197,1721064389373,154.69833824,0.00014999,2]
[332238198,1721064392143,1159.66941642,0.00014999,2]
[332238199,1721064396947,567.25229378,0.00014999,2]
[332238200,1721064398921,1500.0,0.00014999,2]
[332238202,1721064402523,728.22269877,0.00015,2]
[332238203,1721064403203,458.65976805,0.00014999,2]
[332238205,1721064419376,154.68290005,0.00014999,2]
[332238206,1721064446389,158.64148985,0.00014999,2]
[332238207,1721064462574,886.02902786,0.00014999,2]
[332238210,1721064533557,402.79270453,0.00014999,2]
[332238211,1721064557664,217.28013774,0.00014999,2]
[332238212,1721064559442,160.15762601,0.00014999,2]
[332238217,1721064592298,416.83209821,0.00014999,2]
[332238221,1721064597551,500.0,0.00015706,2]
[332238223,1721064629810,610.635225,0.00015,2]
[332238557,1721064638314,-300.0,0.00016254,2]
[332238558,1721064638324,-21269.31771389,0.00016255,2]
[332238559,1721064638333,-201.09696769,0.00016255,2]
[332238560,1721064638343,-1436.35994433,0.00016255,2]
[332238561,1721064638353,-155.15481871,0.00016255,2]
[332238562,1721064638362,-2710.90399481,0.00016793,2]
[332238563,1721064638375,-157.83080625,0.00016882,2]
[332238564,1721064638384,-47542.3915853,0.00016883,2]
[332238565,1721064638394,-24900.0,0.00016893,2]
[332238566,1721064638403,-420.0,0.00017879,2]
[332238567,1721064638414,-1093.65265466,0.0001818,2]
[332238568,1721064638423,-379.096267,0.00018685,2]
[332238569,1721064638432,-191.27347695,0.00018798,2]
[332238570,1721064638442,-1078.53149656,0.000189,2]
[332238571,1721064638451,-163.001484,0.00019178,2]
[332238572,1721064638460,-162.505349,0.00019288,2]
[332238573,1721064638469,-2710.9039948,0.0001938,2]
[332238574,1721064638478,-587.0,0.00019667,2]
[332238575,1721064638487,-990.42381896,0.0002,2]
[332238576,1721064638497,-171.40800158,0.0002,2]
[332238577,1721064638507,-10879.1313796,0.0002,2]
[332238578,1721064638516,-290.931232,0.00021096,2]
[332238579,1721064638526,-712.5,0.00021096,2]
[332238580,1721064638535,-220.29359151,0.00021533,2]
[332238581,1721064638545,-823.0,0.00021634,2]
[332238582,1721064638554,-150.112233,0.000219,2]
[332238583,1721064638564,-500.0,0.00021906,2]
[332238584,1721064638573,-392.86780785,0.00021906,2]
[332238585,1721064638583,-500.0,0.00021906,2]
[332238586,1721064638594,-500.0,0.00021906,2]
[332238587,1721064638603,-500.0,0.00021906,2]
[332238588,1721064638613,-500.0,0.00021906,2]
[332238589,1721064638623,-500.0,0.00021906,2]
[332238590,1721064638632,-352.74118905,0.00021906,2]
[332238591,1721064638641,-500.0,0.00021906,2]
[332238592,1721064638651,-500.0,0.00021906,2]
[332238593,1721064638660,-500.0,0.00021906,2]
[332238594,1721064638669,-500.0,0.00021906,2]
[332238595,1721064638678,-500.0,0.00021906,2]
[332238596,1721064638687,-500.0,0.00021906,2]
[332238597,1721064638696,-500.0,0.00021906,2]
[332238598,1721064638705,-500.0,0.00021906,2]
[332238599,1721064638714,-500.0,0.00021906,2]
[332238600,1721064638723,-500.0,0.00021906,2]
[332238601,1721064638732,-258.71109467,0.00021906,2]
[332238602,1721064638741,-160692.04032896,0.00021907,3]
[332238603,1721064638796,-30620.06683851,0.00021907,3]
[332238604,1721064638809,-34713.65359994,0.00021907,3]
[332238605,1721064638820,-11686.19715959,0.00021907,3]
[332238606,1721064638829,-1043.02984041,0.00021917,5]
[332238613,1721064640340,180.17298398,0.00014999,2]
[332238647,1721064643415,-7970.71407183,0.00021917,5]
[332238648,1721064643425,-1066.73188738,0.00021917,2]
[332238649,1721064643435,-1424.78448955,0.00021917,2]
[332238650,1721064643446,-502.07504299,0.00021917,2]
[332238651,1721064643456,-500.0,0.00021917,2]
[332238652,1721064643465,-185.91461472,0.00021917,2]
[332238653,1721064643475,-500.0,0.00021917,2]
[332238654,1721064643485,-500.0,0.00021917,2]
[332238655,1721064643495,-1500.0,0.00021917,2]
[332238656,1721064643504,-500.0,0.00021917,2]
[332238657,1721064643514,-500.0,0.00021917,2]
[332238658,1721064643523,-504.11692657,0.00021917,2]
[332238659,1721064643533,-500.0,0.00021917,2]
[332238660,1721064643543,-630.28955683,0.00021917,2]
[332238662,1721064643554,-500.0,0.00021917,2]
[332238663,1721064643563,-500.0,0.00021917,2]
[332238664,1721064643574,-500.0,0.00021917,2]
[332238665,1721064643583,-500.0,0.00021917,2]
[332238666,1721064643593,-500.0,0.00021917,2]
[332238667,1721064643603,-500.0,0.00021917,2]
[332238668,1721064643613,-500.0,0.00021917,2]
[332238669,1721064643623,-500.0,0.00021917,2]
[332238671,1721064643633,-500.0,0.00021917,2]
[332238672,1721064643642,-500.0,0.00021917,2]
[332238673,1721064643652,-500.0,0.00021917,2]
[332238674,1721064643661,-500.0,0.00021917,2]
[332238675,1721064643670,-500.0,0.00021917,2]
[332238676,1721064643680,-500.0,0.00021917,2]
[332238677,1721064643689,-517.65902373,0.00021917,2]
[332238678,1721064643699,-501.33830011,0.00021917,2]
[332238679,1721064643708,-500.0,0.00021917,2]
[332238681,1721064643717,-500.0,0.00021917,2]
[332238682,1721064643727,-500.0,0.00021917,2]
[332238683,1721064643736,-500.0,0.00021917,2]
[332238684,1721064643745,-200.0,0.00021917,2]
[332238685,1721064643755,-500.0,0.00021917,2]
[332238686,1721064643765,-500.0,0.00021917,2]
[332238687,1721064643774,-500.0,0.00021917,2]
[332238688,1721064643784,-500.0,0.00021917,2]
[332238689,1721064643794,-500.0,0.00021917,2]
[332238690,1721064643803,-500.0,0.00021917,2]
[332238691,1721064643812,-500.0,0.00021917,2]
[332238692,1721064643820,-500.0,0.00021917,2]
[332238693,1721064643830,-500.0,0.00021917,2]
[332238694,1721064643839,-500.0,0.00021917,2]
[332238695,1721064643848,-552.60727105,0.00021917,2]
[332238696,1721064643857,-502.86843034,0.00021917,2]
[332238697,1721064643867,-500.0,0.00021917,2]
[332238698,1721064643878,-501.63637661,0.00021917,2]
[332238699,1721064643887,-534.80602472,0.00021917,2]
[332238700,1721064643896,-500.0,0.00021917,2]
[332238701,1721064643907,-500.0,0.00021917,2]
[332238702,1721064643916,-500.0,0.00021917,2]
[332238703,1721064643926,-500.0,0.00021917,2]
[332238704,1721064643935,-500.0,0.00021917,2]
[332238705,1721064643945,-500.0,0.00021917,2]
[332238706,1721064643954,-500.0,0.00021917,2]
[332238707,1721064643964,-500.0,0.00021917,2]
[332238708,1721064643973,-500.0,0.00021917,2]
[332238709,1721064643983,-500.0,0.00021917,2]
[332238710,1721064643992,-500.0,0.00021917,2]
[332238711,1721064644001,-500.0,0.00021917,2]
[332238712,1721064644010,-500.0,0.00021917,2]
[332238713,1721064644019,-500.0,0.00021917,2]
[332238714,1721064644029,-500.0,0.00021917,2]
[332238715,1721064644038,-500.0,0.00021917,2]
[332238717,1721064644047,-500.0,0.00021917,2]
[332238719,1721064644057,-500.0,0.00021917,2]
[332238721,1721064644069,-500.0,0.00021917,2]
[332238722,1721064644078,-500.0,0.00021917,2]
[332238723,1721064644087,-501.5832364,0.00021917,2]
[332238724,1721064644097,-500.0,0.00021917,2]
[332238725,1721064644107,-500.0,0.00021917,2]
[332238726,1721064644117,-500.0,0.00021917,2]
[332238727,1721064644127,-447.15901852,0.00021917,2]
[332238728,1721064644137,-500.0,0.00021917,2]
[332238729,1721064644149,-500.0,0.00021917,2]
[332238730,1721064644159,-500.0,0.00021917,2]
[332238731,1721064644168,-500.0,0.00021917,2]
[332238732,1721064644178,-500.0,0.00021917,2]
[332238733,1721064644188,-500.0,0.00021917,2]
[332238734,1721064644198,-626.90735684,0.00021917,2]
[332238735,1721064644207,-501.32704017,0.00021917,2]
[332238736,1721064644217,-500.0,0.00021917,2]
[332238737,1721064644226,-501.14957988,0.00021917,2]
[332238738,1721064644235,-600.21882274,0.00021917,2]
[332238739,1721064644246,-500.0,0.00021917,2]
[332238740,1721064644256,-509.205498,0.00021917,2]
[332238741,1721064644266,-500.0,0.00021917,2]
[332238742,1721064644276,-500.0,0.00021917,2]
[332238743,1721064644286,-500.0,0.00021917,2]
[332238744,1721064644296,-500.0,0.00021917,2]
[332238745,1721064644306,-500.0,0.00021917,2]
[332238746,1721064644316,-500.0,0.00021917,2]
[332238747,1721064644326,-500.0,0.00021917,2]
[332238748,1721064644336,-501.65727453,0.00021917,2]
[332238749,1721064644347,-523.0825896,0.00021917,2]
[332238750,1721064644357,-500.0,0.00021917,2]
[332238751,1721064644367,-503.54408335,0.00021917,2]
[332238752,1721064644385,-509.50327336,0.00021917,2]
[332238753,1721064644397,-500.0,0.00021917,2]
[332238754,1721064644408,-500.0,0.00021917,2]
[332238755,1721064644419,-500.0,0.00021917,2]
[332238756,1721064644428,-500.0,0.00021917,2]
[332238757,1721064644438,-500.0,0.00021917,2]
[332238758,1721064644449,-500.0,0.00021917,2]
[332238759,1721064644459,-921.18,0.00021917,2]
[332238760,1721064644468,-500.0,0.00021917,2]
[332238761,1721064644478,-543.52447097,0.00021917,2]
[332238762,1721064644488,-500.0,0.00021917,2]
[332238763,1721064644497,-500.0,0.00021917,2]
[332238764,1721064644507,-537.68788434,0.00021917,2]
[332238765,1721064644517,-500.0,0.00021917,2]
[332238766,1721064644526,-500.0,0.00021917,2]
[332238767,1721064644536,-500.0,0.00021917,2]
[332238768,1721064644546,-500.0,0.00021917,2]
[332238769,1721064644555,-500.0,0.00021917,2]
[332238770,1721064644564,-500.0,0.00021917,2]
[332238771,1721064644574,-500.0,0.00021917,2]
[332238772,1721064644583,-500.0,0.00021917,2]
[332238773,1721064644593,-500.0,0.00021917,2]
[332238774,1721064644602,-500.0,0.00021917,2]
[332238775,1721064644611,-500.0,0.00021917,2]
[332238776,1721064644624,-523.88405876,0.00021917,2]
[332238777,1721064644633,-500.0,0.00021917,2]
[332238778,1721064644643,-500.0,0.00021917,2]
[332238779,1721064644652,-500.0,0.00021917,2]
[332238780,1721064644661,-500.0,0.00021917,2]
[332238781,1721064644671,-500.0,0.00021917,2]
[332238782,1721064644680,-500.0,0.00021917,2]
[332238783,1721064644689,-500.0,0.00021917,2]
[332238784,1721064644698,-500.0,0.00021917,2]
[332238785,1721064644707,-500.0,0.00021917,2]
[332238786,1721064644717,-500.0,0.00021917,2]
[332238787,1721064644726,-500.0,0.00021917,2]
[332238788,1721064644735,-500.0,0.00021917,2]
[332238789,1721064644745,-500.0,0.00021917,2]
[332238790,1721064644754,-500.0,0.00021917,2]
[332238791,1721064644763,-500.0,0.00021917,2]
[332238792,1721064644773,-500.0,0.00021917,2]
[332238793,1721064644783,-500.0,0.00021917,2]
[332238794,1721064644792,-500.0,0.00021917,2]
[332238795,1721064644801,-500.0,0.00021917,2]
[332238796,1721064644811,-500.0,0.00021917,2]
[332238797,1721064644820,-500.0,0.00021917,2]
[332238798,1721064644829,-500.0,0.00021917,2]
[332238799,1721064644838,-500.0,0.00021917,2]
[332238800,1721064644847,-500.0,0.00021917,2]
[332238801,1721064644857,-500.0,0.00021917,2]
[332238802,1721064644866,-500.0,0.00021917,2]
[332238803,1721064644878,-500.0,0.00021917,2]
[332238804,1721064644887,-500.0,0.00021917,2]
[332238805,1721064644898,-500.0,0.00021917,2]
[332238806,1721064644907,-500.0,0.00021917,2]
[332238807,1721064644916,-500.0,0.00021917,2]
[332238808,1721064644925,-500.0,0.00021917,2]
[332238809,1721064644934,-516.09880883,0.00021917,2]
[332238810,1721064644944,-500.0,0.00021917,2]
[332238811,1721064644954,-500.0,0.00021917,2]
[332238812,1721064644963,-500.0,0.00021917,2]
[332238813,1721064644972,-500.0,0.00021917,2]
[332238814,1721064644983,-500.0,0.00021917,2]
[332238815,1721064644992,-537.04100287,0.00021917,2]
[332238816,1721064645001,-563.97412866,0.00021917,2]
[332238817,1721064645010,-500.0,0.00021917,2]
[332238818,1721064645020,-500.0,0.00021917,2]
[332238819,1721064645029,-500.0,0.00021917,2]
[332238820,1721064645038,-500.0,0.00021917,2]
[332238821,1721064645048,-500.0,0.00021917,2]
[332238822,1721064645061,-500.0,0.00021917,2]
[332238823,1721064645070,-500.0,0.00021917,2]
[332238824,1721064645080,-500.0,0.00021917,2]
[332238825,1721064645089,-500.0,0.00021917,2]
[332238826,1721064645098,-500.0,0.00021917,2]
[332238827,1721064645110,-500.0,0.00021917,2]
[332238828,1721064645119,-500.0,0.00021917,2]
[332238829,1721064645128,-500.0,0.00021917,2]
[332238830,1721064645140,-500.0,0.00021917,2]
[332238831,1721064645150,-500.0,0.00021917,2]
[332238832,1721064645160,-500.0,0.00021917,2]
[332238833,1721064645169,-500.0,0.00021917,2]
[332238834,1721064645179,-501.47274345,0.00021917,2]
[332238835,1721064645188,-500.0,0.00021917,2]
[332238836,1721064645197,-500.0,0.00021917,2]
[332238837,1721064645207,-500.0,0.00021917,2]
[332238838,1721064645216,-500.0,0.00021917,2]
[332238839,1721064645225,-500.0,0.00021917,2]
[332238840,1721064645234,-500.0,0.00021917,2]
[332238841,1721064645245,-500.0,0.00021917,2]
[332238842,1721064645254,-500.0,0.00021917,2]
[332238843,1721064645263,-500.0,0.00021917,2]
[332238844,1721064645273,-500.0,0.00021917,2]
[332238845,1721064645282,-500.0,0.00021917,2]
[332238846,1721064645291,-500.0,0.00021917,2]
[332238847,1721064645301,-500.0,0.00021917,2]
[332238848,1721064645310,-500.0,0.00021917,2]
[332238849,1721064645320,-553.52457693,0.00021917,2]
[332238850,1721064645329,-500.0,0.00021917,2]
[332238851,1721064645338,-500.0,0.00021917,2]
[332238852,1721064645347,-500.0,0.00021917,2]
[332238853,1721064645356,-500.0,0.00021917,2]
[332238854,1721064645366,-500.0,0.00021917,2]
[332238855,1721064645379,-500.0,0.00021917,2]
[332238856,1721064645388,-500.0,0.00021917,2]
[332238857,1721064645398,-500.0,0.00021917,2]
[332238858,1721064645408,-500.0,0.00021917,2]
[332238859,1721064645417,-184.05875203,0.00021917,2]
[332238860,1721064645426,-502.01403287,0.00021917,2]
[332238861,1721064645436,-500.0,0.00021917,2]
[332238862,1721064645448,-500.0,0.00021917,2]
[332238863,1721064645458,-500.0,0.00021917,2]
[332238864,1721064645468,-500.0,0.00021917,2]
[332238865,1721064645478,-500.0,0.00021917,2]
[332238866,1721064645488,-500.0,0.00021917,2]
[332238867,1721064645497,-500.0,0.00021917,2]
[332238868,1721064645506,-500.0,0.00021917,2]
[332238869,1721064645516,-500.0,0.00021917,2]
[332238870,1721064645525,-500.0,0.00021917,2]
[332238871,1721064645534,-500.0,0.00021917,2]
[332238872,1721064645544,-458.27431526,0.00021917,2]
[332238873,1721064645553,-500.0,0.00021917,2]
[332238874,1721064645563,-500.0,0.00021917,2]
[332238875,1721064645572,-500.0,0.00021917,2]
[332238876,1721064645581,-500.0,0.00021917,2]
[332238877,1721064645590,-500.0,0.00021917,2]
[332238878,1721064645599,-513.98729706,0.00021917,2]
[332238879,1721064645609,-500.0,0.00021917,2]
[332238880,1721064645619,-500.0,0.00021917,2]
[332238881,1721064645628,-500.0,0.00021917,2]
[332238882,1721064645638,-500.0,0.00021917,2]
[332238883,1721064645647,-500.0,0.00021917,2]
[332238884,1721064645657,-500.0,0.00021917,2]
[332238885,1721064645666,-500.0,0.00021917,2]
[332238886,1721064645675,-500.0,0.00021917,2]
[332238887,1721064645685,-500.0,0.00021917,2]
[332238888,1721064645694,-500.0,0.00021917,2]
[332238890,1721064645703,-500.0,0.00021917,2]
[332238891,1721064645712,-500.0,0.00021917,2]
[332238893,1721064645721,-500.0,0.00021917,2]
[332238895,1721064645730,-500.0,0.00021917,2]
[332238896,1721064645739,-500.0,0.00021917,2]
[332238897,1721064645748,-500.0,0.00021917,2]
[332238898,1721064645757,-500.0,0.00021917,2]
[332238899,1721064645766,-500.0,0.00021917,2]
[332238900,1721064645775,-500.0,0.00021917,2]
[332238904,1721064645784,-500.0,0.00021917,2]
[332238907,1721064645793,-500.0,0.00021917,2]
[332238910,1721064645802,-313.35667661,0.00021917,2]
[332238914,1721064645812,-500.0,0.00021917,2]
[332238917,1721064645821,-500.0,0.00021917,2]
[332238920,1721064645831,-500.0,0.00021917,2]
[332238923,1721064645840,-500.0,0.00021917,2]
[332238925,1721064645850,-500.0,0.00021917,2]